bitfinex-derivatives/quotes_ETHF0:USTF0_20260123
["timestamp","ask_amount","ask_price","bid_price","bid_amount"]
[1769208964168,0.00328797,2959.6,2958.7,2.5027149]
[1769208967875,0.88747839,2960.2,2958.8,2.29043141]
[1769208968075,0.88747839,2960.2,2958.9,3.1779098]
[1769208968076,1.16316818,2960.1,2958.9,3.1779098]
[1769208968267,0.88747839,2960.2,2958.9,3.1779098]
[1769208968973,0.89087717,2960.2,2958.9,3.1779098]
[1769208971464,0.00507468,2959.8,2958.9,3.1779098]
[1769208971869,0.00507468,2959.8,2959.0,2.29043141]
[1769208972068,0.00507468,2959.8,2959.0,2.29308072]
[1769208973176,0.00339878,2960.2,2959.2,2.29043141]
[1769208973375,0.00339878,2960.2,2959.4,3.1779098]
[1769208973677,0.88747839,2960.9,2959.5,4.947]
[1769208973879,1.16206324,2960.8,2959.5,4.947]
[1769208974179,0.88747839,2960.9,2959.5,4.947]
[1769208974474,1.16154179,2960.8,2959.5,4.947]
[1769208974675,3.1118391,2960.9,2959.5,4.947]
[1769208974874,1.16154252,2960.8,2959.5,4.947]
[1769208975075,3.1118391,2960.9,2959.5,4.947]
[1769208975275,0.87168787,2960.8,2959.5,4.947]
[1769208975576,3.1118391,2960.9,2959.5,4.947]
[1769208975772,0.87138587,2960.8,2959.5,4.947]
[1769208975973,3.1118391,2960.9,2959.5,4.947]
[1769208976168,0.87138586,2960.8,2959.5,4.947]
[1769208976472,3.1118391,2960.9,2959.5,4.947]
[1769208977671,3.1118391,2960.9,2959.5,5.11615]
[1769208977873,3.1118391,2960.9,2959.5,7.40658141]
[1769208978079,3.1118391,2960.9,2959.6,2.29043141]
[1769208990486,2.22436071,2960.9,2959.6,2.29043141]
[1769208990680,2.22436071,2960.9,2959.6,3.1779098]
[1769208990876,0.00308852,2960.9,2959.6,3.1779098]
[1769208991584,0.00308852,2960.9,2959.8,0.16914]
[1769208996088,0.00308852,2960.9,2959.8,2.43965625]
[1769208998991,0.00308852,2960.9,2959.9,0.16913]
[1769209002685,0.00308852,2960.9,2959.9,2.43964625]
[1769209002987,0.00308852,2960.9,2960.0,0.16912]
[1769209005095,0.00308852,2960.9,2960.1,0.16912]
[1769209006093,0.00308852,2960.9,2960.2,0.00507468]
[1769209011697,0.00308852,2960.9,2960.2,0.17418468]
[1769209020407,0.00308852,2960.9,2960.2,2.589826]
[1769209023517,2.34894958,2961.6,2960.2,2.589826]
[1769209023721,2.26496811,2962.0,2960.5,0.16909]
[1769209024019,3.42758226,2961.9,2960.7,0.16908]
[1769209024218,2.26496811,2962.6,2960.8,7.64159865]
[1769209024416,3.42682436,2962.5,2960.9,0.16907]
[1769209024615,1.16185625,2962.4,2960.9,2.61358865]
[1769209024811,1.16185625,2962.3,2960.9,2.61358865]
[1769209025022,0.86991781,2962.2,2960.9,2.61358865]
[1769209025216,2.26866571,2962.5,2960.9,2.61358865]
[1769209025517,3.42621362,2962.4,2960.9,2.61358865]
[1769209025721,1.16124551,2962.3,2960.9,2.61358865]
[1769209026021,2.26496811,2962.4,2960.9,2.61358865]
[1769209026223,0.86947362,2962.3,2960.9,2.61358865]
[1769209026421,2.26496811,2962.4,2960.9,2.61358865]
[1769209026622,0.86914963,2962.3,2960.9,2.61358865]
[1769209026922,2.26496811,2962.4,2960.9,2.61358865]
[1769209027115,0.86914963,2962.3,2960.9,2.61358865]
[1769209027321,2.26496811,2962.4,2960.9,2.61358865]
[1769209027520,0.868884,2962.3,2960.9,2.61358865]
[1769209027722,2.26496811,2962.4,2960.9,2.61358865]
[1769209027913,0.86888399,2962.3,2960.9,2.61358865]
[1769209028118,2.26496811,2962.4,2960.9,2.61358865]
[1769209028519,2.26496811,2962.4,2960.9,0.16907]
[1769209028723,2.21384919,2962.2,2960.9,0.16907]
[1769209044234,2.21384919,2962.0,2960.9,0.16907]
[1769209050335,2.21384919,2962.0,2960.9,2.58471132]
[1769209053336,2.21384919,2962.0,2961.0,2.41564132]
[1769209068854,2.23556565,2962.4,2961.1,0.88603013]
[1769209069043,1.16391158,2962.3,2961.1,0.88995693]
[1769209069247,1.16391158,2962.2,2961.1,0.88995693]
[1769209069450,0.87159895,2962.1,2961.1,0.88995693]
[1769209069648,2.23556565,2962.4,2961.1,0.88995693]
[1769209069948,1.16385274,2962.3,2961.1,0.88995693]
[1769209070147,1.16385274,2962.2,2961.1,0.88995693]
[1769209070449,2.23556565,2962.4,2961.1,0.88995693]
[1769209070450,0.87155667,2962.1,2961.1,0.88995693]
[1769209070751,2.23556565,2962.4,2961.1,0.88995693]
[1769209071058,1.16384733,2962.3,2961.1,0.88995693]
[1769209071254,1.16384733,2962.2,2961.1,0.88995693]
[1769209071546,0.87155262,2962.1,2961.1,0.88995693]
[1769209071752,2.23556565,2962.4,2961.1,0.88995693]
[1769209071953,1.1638458,2962.3,2961.1,0.88995693]
[1769209072249,1.1638458,2962.2,2961.1,0.88995693]
[1769209072550,0.87155153,2962.1,2961.1,0.88995693]
[1769209072746,1.05870773,2962.5,2961.1,0.88995693]
[1769209072948,2.23556565,2962.3,2961.1,0.88995693]
[1769209073152,1.16385083,2962.2,2961.1,0.88995693]
[1769209073354,0.8715553,2962.1,2961.1,0.88995693]
[1769209073546,2.23556565,2962.3,2961.1,0.88995693]
[1769209073747,1.16386215,2962.2,2961.1,0.88995693]
[1769209074045,0.87156377,2962.1,2961.1,0.88995693]
[1769209074346,2.23556565,2962.3,2961.1,0.88995693]
[1769209074543,0.29230327,2962.2,2961.2,2.41564132]
[1769209074744,2.23556565,2962.3,2961.2,2.41564132]
[1769209082258,2.23556565,2962.3,2961.1,3.30559825]
[1769209083750,2.23556565,2962.3,2961.2,2.41564132]
[1769209085255,2.23556565,2962.3,2961.1,3.47465825]
[1769209088761,0.00382379,2962.0,2961.1,3.47465825]
[1769209093960,0.00382379,2962.0,2961.1,5.91079346]
[1769209095863,0.00382379,2962.0,2961.2,2.41564132]
[1769209096065,0.00382379,2962.0,2961.4,0.88603013]
[1769209102567,0.0036976,2962.5,2961.4,0.88603013]
[1769209102764,1.16626939,2962.4,2961.6,0.88603013]
[1769209102964,0.0036976,2962.5,2961.6,0.88603013]
[1769209103271,1.16626887,2962.4,2961.6,0.88603013]
[1769209103469,0.0036976,2962.5,2961.6,0.88603013]
[1769209103669,1.16641686,2962.4,2961.6,0.88603013]
[1769209103872,0.0036976,2962.5,2961.8,0.00506603]
[1769209104168,1.16641639,2962.4,2961.8,0.00506603]
[1769209104366,0.87413371,2962.3,2961.8,0.00506603]
[1769209104571,0.0036976,2962.5,2961.8,0.00506603]
[1769209104773,1.16442137,2962.4,2961.8,0.00506603]
[1769209104973,0.8720783,2962.3,2961.8,0.00506603]
[1769209105173,0.0036976,2962.5,2961.8,0.00506603]
[1769209105475,1.16442872,2962.4,2961.8,0.00506603]
[1769209105771,0.87208391,2962.3,2961.8,0.00506603]
[1769209105971,0.0036976,2962.5,2961.8,0.00506603]
[1769209106176,1.16442864,2962.4,2961.8,0.00506603]
[1769209106468,0.0036976,2962.5,2961.8,0.00506603]
[1769209106669,1.16443413,2962.4,2961.8,0.00506603]
[1769209106877,0.0036976,2962.5,2961.8,0.00506603]
[1769209107173,0.87208733,2962.4,2961.8,0.00506603]
[1769209107378,0.0036976,2962.5,2961.8,0.00506603]
[1769209107578,0.87204586,2962.4,2961.8,0.00506603]
[1769209107872,0.0036976,2962.5,2961.8,0.00506603]
[1769209108075,0.87202344,2962.4,2961.8,0.00506603]
[1769209108378,0.0036976,2962.5,2961.8,0.00506603]
[1769209108584,0.87195288,2962.4,2961.8,0.00506603]
[1769209108770,0.0036976,2962.5,2961.8,0.00506603]
[1769209108969,0.87195302,2962.4,2961.8,0.00506603]
[1769209109175,0.0036976,2962.5,2961.8,0.00506603]
[1769209111672,0.0036976,2962.5,2961.9,0.88603013]
[1769209116883,0.0036976,2962.5,2961.8,0.00506603]
[1769209119780,2.53854442,2963.4,2961.8,0.00506603]
[1769209120076,2.53854442,2963.4,2961.8,2.29779527]
[1769209120077,3.53217567,2963.3,2961.8,2.29779527]
[1769209120277,1.16256125,2963.2,2961.8,2.29779527]
[1769209120483,1.16256125,2963.1,2961.8,2.29779527]
[1769209120781,1.16256125,2963.0,2961.8,2.29779527]
[1769209120981,0.87069127,2962.9,2961.8,2.29779527]
[1769209121182,0.00376299,2963.1,2961.8,2.29779527]
[1769209121378,1.16238319,2963.0,2961.8,2.29779527]
[1769209121578,0.00376299,2963.1,2961.8,2.29779527]
[1769209121779,1.16237767,2963.0,2961.8,2.46681527]
[1769209121987,0.00376299,2963.1,2961.8,2.46681527]
[1769209122284,0.87053006,2963.0,2961.8,2.46681527]
[1769209122485,0.00376299,2963.1,2961.8,2.46681527]
[1769209122686,0.87043081,2963.0,2961.8,2.46681527]
[1769209122887,0.00376299,2963.1,2961.8,2.46681527]
[1769209123083,0.87043081,2963.0,2961.8,2.46681527]
[1769209123381,0.00376299,2963.1,2961.8,2.46681527]
[1769209123596,0.87035031,2963.0,2961.8,2.46681527]
[1769209123787,0.00376299,2963.1,2961.8,2.46681527]
[1769209123988,0.87035015,2963.0,2961.8,2.46681527]
[1769209124196,0.00376299,2963.1,2961.8,2.46681527]
[1769209124389,0.87028834,2963.0,2961.8,2.46681527]
[1769209124685,2.37337741,2963.1,2961.8,5.31108603]
[1769209124887,0.87028828,2963.0,2961.8,5.31108603]
[1769209125186,2.37337741,2963.1,2961.8,5.31108603]
[1769209127585,2.37337741,2963.1,2961.8,0.17408603]
[1769209129394,2.36961442,2962.9,2961.8,0.00506603]
[1769209129595,2.36961442,2962.7,2961.8,0.00506603]
[1769209131892,2.36961442,2962.7,2961.3,2.41564132]
[1769209132595,2.36961442,2962.7,2961.4,2.41564132]
[1769209133190,0.00376299,2963.1,2961.8,0.89042944]
[1769209133383,0.00376299,2963.1,2961.9,2.29272924]
[1769209133588,0.00376299,2963.1,2961.9,4.70837056]
[1769209137094,0.00376299,2963.1,2962.0,0.16901]
[1769209137295,0.00376299,2963.1,2962.0,2.46173924]
[1769209137502,0.00376299,2963.1,2962.0,4.87738056]
[1769209142399,0.00376299,2963.1,2962.1,2.41591497]
[1769209142601,3.31043564,2963.9,2962.4,2.41590497]
[1769209142798,3.31043564,2963.9,2962.5,2.41589497]
[1769209142998,0.86718714,2963.9,2962.7,2.24691497]
[1769209143197,2.4432485,2964.3,2962.7,2.24691497]
[1769209143398,1.16063544,2964.2,2962.8,0.16896]
[1769209143603,3.31186256,2964.1,2962.8,0.16896]
[1769209143899,2.4432485,2964.1,2962.6,3.30100473]
[1769209144097,2.4432485,2964.1,2962.4,2.41564132]
[1769209144303,0.88536341,2963.6,2962.0,2.41564132]
[1769209144497,2.4432485,2963.4,2962.0,2.41564132]
[1769209147008,2.4432485,2963.4,2961.9,2.41564132]
[1769209155006,2.4432485,2963.4,2961.9,2.58466132]
[1769209155916,2.4432485,2963.4,2962.0,2.41564132]
[1769209160210,2.4432485,2963.4,2962.0,2.58465132]
[1769209162321,2.4432485,2963.4,2962.1,2.41564132]
[1769209166725,2.26618668,2962.8,2961.5,2.41564132]
[1769209166916,2.26618668,2962.6,2961.1,6.63601061]
[1769209167116,2.26618668,2962.4,2961.1,0.0039268]
[1769209167321,2.26618668,2962.2,2961.1,0.0039268]
[1769209168125,2.26618668,2962.2,2961.4,0.00506603]
[1769209170129,2.26618668,2962.2,2960.7,2.41564132]
[1769209170329,2.26618668,2962.2,2960.4,2.41564132]
[1769209170622,2.26618668,2962.0,2960.3,2.58475132]
[1769209170830,2.26618668,2962.0,2960.3,0.16911]
[1769209171216,2.26618668,2961.8,2960.3,0.17194122]
[1769209172134,2.26618668,2961.8,2960.8,0.00506603]
[1769209172329,2.35667927,2961.3,2960.3,0.17194122]
[1769209173426,0.00506603,2961.3,2960.3,0.17194122]
[1769209173625,0.00388573,2962.0,2960.3,0.17194122]
[1769209173626,0.00388573,2962.0,2960.8,2.31118031]
[1769209174331,2.35549897,2962.0,2960.8,0.00506603]
[1769209174828,2.35549897,2962.0,2960.6,0.16909]
[1769209175329,2.35549897,2962.0,2960.7,0.00506603]
[1769209175528,2.35549897,2962.0,2960.6,0.16909]
[1769209176124,2.35549897,2962.0,2960.8,0.00506603]
[1769209176631,2.35549897,2962.0,2960.9,0.00506603]
[1769209176834,2.35549897,2962.0,2960.8,0.00506603]
[1769209177328,2.35549897,2962.0,2960.9,0.00506603]
[1769209177626,2.35549897,2962.0,2960.8,0.00506603]
[1769209178032,2.35549897,2962.0,2960.9,0.00506603]
[1769209178334,2.35549897,2962.0,2960.8,0.00506603]
[1769209178727,2.35549897,2962.0,2960.6,0.16909]
[1769209179030,2.35549897,2962.0,2960.7,0.89116658]
[1769209179428,2.35549897,2962.0,2960.8,0.00506603]
[1769209184628,2.35549897,2962.0,2960.9,0.00506603]
[1769209184829,2.35549897,2962.0,2960.8,0.00506603]
[1769209185330,2.35549897,2962.0,2960.9,0.00506603]
[1769209185528,2.35549897,2962.0,2960.8,0.00506603]
[1769209185938,2.35549897,2962.0,2960.9,0.00506603]
[1769209186135,2.35549897,2962.0,2960.8,0.00506603]
[1769209186535,2.35549897,2962.0,2960.9,0.00506603]
[1769209186738,2.35549897,2962.0,2960.8,0.00506603]
[1769209187135,2.35549897,2962.0,2960.9,0.00506603]
[1769209187337,2.35549897,2962.0,2960.8,0.00506603]
[1769209187733,2.35549897,2962.0,2960.9,0.00506603]
[1769209187934,2.35549897,2962.0,2960.8,0.00506603]
[1769209188337,2.35549897,2962.0,2960.9,0.00506603]
[1769209188540,2.35549897,2962.0,2960.8,0.00506603]
[1769209189143,2.35549897,2962.0,2960.9,0.00506603]
[1769209189335,2.35549897,2962.0,2960.8,0.00506603]
[1769209189940,2.35549897,2962.0,2960.9,0.00506603]
[1769209190132,2.35549897,2962.0,2960.8,0.00506603]
[1769209190536,2.35549897,2962.0,2960.7,1.05518055]
[1769209190537,2.35549897,2962.0,2960.9,0.00506603]
[1769209190737,2.35549897,2962.0,2960.8,0.00506603]
[1769209190938,2.35549897,2962.0,2960.7,1.05518055]
[1769209191138,2.35549897,2962.0,2960.9,0.00506603]
[1769209191343,2.35549897,2962.0,2960.7,1.05518055]
[1769209191941,2.35549897,2962.0,2960.9,0.00506603]
[1769209192445,2.35549897,2962.0,2961.0,0.00506603]
[1769209192745,2.35549897,2962.0,2960.9,0.00506603]
[1769209193345,2.35549897,2962.0,2961.0,0.00506603]
[1769209193649,2.35549897,2962.0,2960.9,0.00506603]
[1769209193943,2.35549897,2962.0,2961.0,0.00506603]
[1769209194143,2.35549897,2962.0,2960.9,0.00506603]
[1769209194542,2.35549897,2962.0,2960.7,1.05518055]
[1769209194741,2.35549897,2962.0,2960.8,0.00506603]
[1769209195846,2.35549897,2962.0,2960.7,1.05518055]
[1769209196047,2.35549897,2962.0,2960.8,0.00506603]
[1769209196342,0.87454771,2961.9,2960.8,0.00506603]
[1769209196648,0.87454771,2961.9,2960.7,1.05518055]
[1769209196649,2.35161324,2961.8,2960.9,0.00506603]
[1769209197042,2.35161324,2961.8,2961.0,0.00506603]
[1769209197241,2.35161324,2961.8,2960.7,1.05518055]
[1769209197242,2.35161324,2961.8,2960.9,0.00506603]
[1769209197645,2.35161324,2961.8,2961.0,0.00506603]
[1769209197947,2.35161324,2961.8,2960.7,1.05518055]
[1769209198148,2.35161324,2961.8,2960.9,0.00506603]
[1769209198748,2.35161324,2961.8,2961.0,0.00506603]
[1769209198950,2.35161324,2961.8,2960.9,0.00506603]
[1769209199648,2.35161324,2961.8,2961.0,0.00506603]
[1769209199847,2.35161324,2961.8,2960.9,0.00506603]
[1769209200248,2.35161324,2961.8,2961.0,0.00506603]
[1769209200443,2.35161324,2961.8,2960.9,0.00506603]
[1769209200647,2.35161324,2961.5,2960.5,0.00506603]
[1769209200846,2.35161324,2961.2,2960.2,2.41564132]
[1769209201047,2.35161324,2961.2,2960.0,2.41564132]
[1769209201247,3.23771379,2961.0,2960.0,2.41564132]
[1769209201454,2.35161324,2960.6,2959.8,0.16914]
[1769209201644,2.35161324,2960.6,2959.5,2.41564132]
[1769209201851,2.35161324,2960.3,2959.5,0.00506603]
[1769209202149,2.35161324,2960.3,2959.2,2.58481132]
[1769209202351,2.29905286,2960.7,2959.7,0.88610055]
[1769209202759,2.29905286,2960.7,2959.8,0.00506603]
[1769209203147,2.29905286,2960.7,2959.9,0.00506603]
[1769209203347,2.29905286,2960.7,2959.8,0.00506603]
[1769209203751,2.29905286,2960.7,2959.9,0.00506603]
[1769209203954,2.29905286,2960.7,2959.8,0.00506603]
[1769209204149,2.29905286,2960.6,2959.8,0.00506603]
[1769209204349,0.16906,2961.2,2959.4,0.16916]
[1769209204350,2.29905286,2960.3,2959.4,0.16916]
[1769209205257,2.29905286,2960.3,2959.2,0.00315916]
[1769209205852,2.29905286,2960.0,2959.2,0.00315916]
[1769209206056,2.29905286,2960.0,2958.8,0.16919]
[1769209206654,2.30411889,2959.7,2958.8,0.16919]
[1769209206858,2.30411889,2959.7,2958.3,0.88610055]
[1769209207058,2.30706554,2959.7,2958.3,0.88983338]
[1769209207261,2.30706554,2959.7,2958.3,1.05905338]
[1769209207761,2.30706554,2959.7,2958.4,0.16922]
[1769209212757,2.2491415,2959.4,2958.4,0.16922]
[1769209226474,2.2491415,2959.2,2958.3,0.00373283]
[1769209226776,2.2491415,2959.0,2958.3,0.00373283]
[1769209228977,2.2491415,2959.0,2957.9,0.16924]
[1769209229979,2.2491415,2959.0,2957.9,0.1722589]
[1769209240791,2.13481532,2959.6,2958.2,0.16923]
[1769209240988,0.00801268,2959.7,2958.8,0.16919]
[1769209241188,2.13481532,2960.4,2959.0,0.16918]
[1769209241491,1.16899938,2960.3,2959.1,0.16918]
[1769209241684,0.87698437,2960.2,2959.1,0.16918]
[1769209241881,2.13481532,2960.4,2959.1,0.16918]
[1769209242082,0.87677367,2960.3,2959.1,0.16918]
[1769209242384,0.00335452,2960.3,2959.1,0.16918]
[1769209242590,0.00335452,2960.3,2959.2,0.16917]
[1769209243392,0.00506603,2960.0,2959.2,0.16917]
[1769209246587,0.00123514,2960.3,2959.5,0.16915]
[1769209248094,0.00123514,2960.3,2959.6,0.00506603]
[1769209249488,0.00123514,2960.3,2959.6,0.17421603]
[1769209270102,1.95399539,2960.3,2959.6,0.00506603]
[1769209270309,1.95276025,2960.1,2959.0,5.96682132]
[1769209270611,1.95276025,2960.1,2959.0,3.55118]
[1769209271702,1.95276025,2959.9,2959.0,3.55118]
[1769209272416,1.95276025,2959.9,2959.0,0.16918]
[1769209297229,1.95276025,2959.9,2959.0,2.58482132]
[1769209300333,1.95276025,2959.9,2959.1,2.41564132]
[1769209321456,1.95276025,2959.9,2959.0,2.58482132]
[1769209321853,1.95276025,2959.9,2959.0,2.41564132]
[1769209322059,2.59771978,2959.5,2958.7,5.43542441]
[1769209322366,0.88731531,2959.3,2958.7,2.41564132]
[1769209322559,0.88731531,2959.0,2958.1,7.23622558]
[1769209322754,0.88731531,2959.0,2958.1,4.21644249]
[1769209322960,0.88731531,2959.0,2958.0,3.18902309]
[1769209323159,0.88731531,2959.0,2958.0,0.16924]
[1769209323563,2.59771978,2959.0,2958.0,0.16924]
[1769209326970,1.71040447,2959.0,2958.0,0.16924]
[1769209331777,2.59771978,2959.0,2958.0,0.16924]
[1769209331976,1.5870906,2958.7,2957.9,0.0030189]
[1769209332275,2.47440591,2958.4,2957.5,0.16927]
[1769209332975,1.5870906,2958.4,2957.5,0.16927]
[1769209333175,1.5870906,2958.4,2957.5,0.17262942]
[1769209333771,0.89238134,2958.6,2957.5,0.17262942]
[1769209333772,0.00506603,2958.6,2957.9,0.88731531]
[1769209333978,0.00506603,2958.6,2958.1,1.05654531]
[1769209335482,0.00190676,2958.6,2958.1,1.05654531]
[1769209335681,1.5870906,2959.3,2958.1,0.88731531]
[1769209336483,1.5870906,2959.3,2958.3,0.16922]
[1769209351591,1.5870906,2959.3,2958.0,0.8876833]
[1769209352092,1.5870906,2959.3,2958.0,1.0569233]
[1769209356791,1.5870906,2959.3,2958.3,0.16922]
[1769209356988,1.5870906,2959.3,2958.4,0.16922]
[1769209357194,1.5870906,2959.3,2958.4,1.0569033]
[1769209360596,1.5870906,2959.3,2958.6,0.00506603]
[1769209365597,1.5492126,2959.1,2957.8,4.21644249]
[1769209365901,1.5492126,2958.9,2957.5,3.38635942]
[1769209366103,1.5492126,2958.7,2957.5,3.38635942]
[1769209368908,1.5492126,2958.7,2957.8,0.00506603]
[1769209372408,1.5492126,2958.7,2957.5,0.00335942]
[1769209372606,0.88748789,2958.2,2956.8,3.18908309]
[1769209372813,2.75228477,2958.1,2956.8,0.1693]
[1769209373105,1.5492126,2958.0,2956.9,0.1693]
[1769209373710,0.00506603,2957.7,2956.9,0.1693]
[1769209374008,0.00327845,2958.0,2957.6,0.16926]
[1769209378209,0.00327845,2958.0,2957.1,0.16929]
[1769209378416,1.55249105,2958.0,2956.9,0.00356577]
[1769209379104,0.00327845,2958.0,2956.9,0.00356577]
[1769209379418,0.00327845,2958.0,2957.1,1.7518744]
[1769209380206,0.00327845,2958.0,2956.9,0.00356577]
[1769209380207,1.55249105,2958.0,2956.9,0.00356577]
[1769209381211,0.00327845,2958.0,2956.9,1.58615017]
[1769209381616,1.5492126,2958.9,2957.2,1.5825844]
[1769209382118,1.5492126,2958.9,2957.5,0.16927]
[1769209382315,1.5492126,2958.9,2957.5,1.54516077]
[1769209382511,1.55163353,2958.9,2957.5,1.54516077]
[1769209383018,0.00506603,2958.5,2957.9,0.00506603]
[1769209383407,0.00506603,2958.5,2956.9,1.37945654]
[1769209383619,0.00506603,2958.5,2957.6,0.16926]
[1769209384316,0.00506603,2958.5,2957.7,0.16925]
[1769209384512,0.00506603,2958.5,2957.3,0.16928]
[1769209385019,0.00506603,2958.5,2957.6,0.00506603]
[1769209385722,0.00506603,2958.5,2958.0,1.37589077]
[1769209386114,1.40677611,2958.5,2957.6,0.00506603]
[1769209386413,0.00506603,2958.5,2957.8,1.54514077]
[1769209388120,0.00506603,2958.5,2957.8,0.16925]
[1769209388324,0.00506603,2958.5,2957.6,0.00506603]
[1769209389421,0.00506603,2958.5,2957.8,0.16925]
[1769209391029,0.00506603,2958.5,2957.9,0.16924]
[1769209391227,0.00506603,2958.5,2957.6,1.25010157]
[1769209391933,0.00506603,2958.5,2958.0,0.16924]
[1769209392821,0.00242093,2958.9,2958.2,0.16922]
[1769209398429,0.00506603,2958.8,2958.2,0.16922]
[1769209404239,0.00506603,2958.8,2958.3,1.41425554]
[1769209404534,0.00242093,2958.9,2958.5,1.24503554]
[1769209404836,1.28044154,2960.3,2958.6,1.41423554]
[1769209405041,2.48448254,2960.2,2958.7,0.1692]
[1769209405238,1.204041,2960.1,2958.7,0.1692]
[1769209405529,1.28044154,2960.2,2959.2,0.00506603]
[1769209405530,1.204041,2960.0,2959.2,0.00506603]
[1769209405730,1.28044154,2960.2,2959.2,0.00896656]
[1769209405937,0.00354889,2960.0,2959.2,0.00896656]
[1769209406540,0.00506603,2959.9,2959.2,0.00896656]
[1769209409828,6.03e-06,2959.9,2959.2,1.2540021]
[1769209410034,1.28044154,2961.0,2959.5,0.16915]
[1769209410233,1.28044154,2961.0,2959.2,1.2540021]
[1769209410234,1.28044154,2960.5,2959.2,0.00896656]
[1769209411039,1.28358735,2960.5,2959.2,0.00896656]
[1769209411937,1.58711705,2960.4,2959.2,0.00896656]
[1769209412137,1.28044154,2960.4,2959.2,0.00896656]
[1769209414841,0.00314581,2960.5,2959.4,1.00925698]
[1769209415036,0.96225987,2960.5,2959.2,0.00896656]
[1769209416531,0.00314581,2960.5,2959.2,1.18739354]
[1769209420747,0.00314581,2960.5,2959.3,1.17841698]
[1769209422542,0.00314581,2960.5,2959.3,0.16916]
[1769209422847,0.96225987,2960.5,2959.3,0.16916]
[1769209424642,0.00314581,2960.5,2959.3,1.17841698]
[1769209424843,0.00314581,2960.5,2959.4,0.16916]
[1769209428843,0.00314581,2960.5,2959.4,1.17841698]
[1769209431050,0.88695892,2960.4,2959.4,1.17841698]
[1769209432654,0.88695892,2960.4,2959.4,0.16916]
[1769209433352,0.88695892,2960.2,2959.2,0.00896656]
[1769209433551,0.88695892,2960.0,2959.2,0.00896656]
[1769209435350,0.88695892,2960.2,2959.2,0.00896656]
[1769209436450,0.30724067,2960.1,2959.2,0.00896656]
[1769209436650,0.88695892,2960.2,2959.2,0.00896656]
[1769209436847,0.30724034,2960.1,2959.2,0.00896656]
[1769209437051,0.88695892,2960.2,2959.2,0.00896656]
[1769209437252,0.30724034,2960.1,2959.2,0.00896656]
[1769209437455,0.88695892,2960.2,2959.2,0.00896656]
[1769209437753,0.30731057,2960.1,2959.2,0.00896656]
[1769209437955,0.88695892,2960.2,2959.2,0.00896656]
[1769209438254,0.30731049,2960.1,2959.2,0.00896656]
[1769209438559,0.88695892,2960.2,2959.2,0.00896656]
[1769209438748,0.30730388,2960.1,2959.2,0.00896656]
[1769209438952,0.88695892,2960.2,2959.2,0.00896656]
[1769209439147,0.30730163,2960.1,2959.2,0.00896656]
[1769209439352,0.88695892,2960.2,2959.2,0.00896656]
[1769209439658,0.30729745,2960.1,2959.2,0.00896656]
[1769209439955,0.88695892,2960.2,2959.2,0.00896656]
[1769209440152,0.30729745,2960.1,2959.2,0.00896656]
[1769209440359,0.88695892,2960.2,2959.2,0.00896656]
[1769209440556,0.30729745,2960.1,2959.2,0.00896656]
[1769209440760,0.88695892,2959.8,2959.2,0.00896656]
[1769209440962,0.88695892,2959.8,2958.6,0.1692]
[1769209441958,0.88695892,2959.4,2958.6,0.00386865]
[1769209442654,0.00506603,2959.5,2958.6,0.00386865]
[1769209442854,0.00506603,2959.5,2958.7,0.89996187]
[1769209443057,0.00506603,2959.5,2958.8,0.73076187]
[1769209443462,0.00506603,2959.5,2958.9,0.00506603]
[1769209444063,0.89202495,2959.5,2958.9,0.00506603]
[1769209446865,0.00506603,2959.5,2958.9,0.00506603]
[1769209449865,0.89202495,2959.5,2958.9,0.00506603]
[1769209450472,1.54479118,2959.1,2957.8,0.16925]
[1769209450674,0.88695892,2958.9,2957.8,0.16925]
[1769209451475,0.89202495,2959.5,2958.1,0.88695892]
[1769209451676,0.88695892,2959.3,2958.1,0.88695892]
[1769209452980,0.88695892,2959.3,2958.0,0.63049866]
[1769209457381,0.88695892,2959.1,2958.0,0.63049866]
[1769209457586,0.88695892,2958.7,2957.9,0.16924]
[1769209457977,0.88695892,2958.7,2957.8,0.00290652]
[1769209458180,0.88695892,2959.3,2957.8,0.63340518]
[1769209458379,0.88695892,2959.3,2958.0,0.63049866]
[1769209459285,0.88695892,2959.1,2958.0,0.63049866]
[1769209461393,0.88695892,2959.3,2958.0,0.63049866]
[1769209462989,0.00506603,2959.5,2958.3,0.88695892]
[1769209463195,0.00506603,2959.5,2958.5,0.88695892]
[1769209463486,0.00506603,2959.5,2958.6,0.1692]
[1769209463688,0.89010473,2960.5,2959.0,0.63049866]
[1769209463881,1.20252168,2960.4,2959.0,0.63049866]
[1769209464085,2.0894806,2960.3,2959.0,0.63049866]
[1769209464285,1.20252168,2960.2,2959.0,0.63049866]
[1769209464487,0.88695892,2960.3,2959.0,0.63049866]
[1769209464694,1.20318633,2960.2,2959.0,0.63049866]
[1769209464893,0.88695892,2960.1,2959.0,0.63049866]
[1769209466096,0.88695892,2960.1,2959.3,0.00506603]
[1769209466295,0.00506603,2959.8,2959.3,0.00506603]
[1769209472507,0.00506603,2959.8,2958.8,0.16919]
[1769209477003,0.00506603,2959.8,2959.1,1.44717758]
[1769209480107,0.00506603,2959.8,2959.1,0.56021866]
[1769209480901,0.00506603,2959.8,2959.2,0.56021866]
[1769209481104,0.89010473,2960.5,2959.2,0.56528469]
[1769209481299,0.30631803,2960.4,2959.2,0.56528469]
[1769209481506,0.89010473,2960.5,2959.2,0.56528469]
[1769209482007,0.89010473,2960.5,2959.2,0.73445469]
[1769209482213,0.89010473,2960.5,2959.4,0.72937866]
[1769209485007,0.00314581,2960.5,2959.4,0.72937866]
[1769209489216,0.00314581,2960.5,2959.5,0.56021866]
[1769209496126,0.00314581,2960.5,2959.6,0.56021866]
[1769209499323,0.30699974,2960.4,2959.6,0.56021866]
[1769209499624,0.00314581,2960.5,2959.6,0.56021866]
[1769209499923,0.30699972,2960.4,2959.6,0.56021866]
[1769209500117,0.00314581,2960.5,2959.6,0.56021866]
[1769209500317,0.30699972,2960.4,2959.6,0.56021866]
[1769209500518,0.00314581,2960.5,2959.6,0.56021866]
[1769209500725,0.30703514,2960.4,2959.6,0.56021866]
[1769209500923,0.00314581,2960.5,2959.6,0.56021866]
[1769209501126,0.30703514,2960.4,2959.6,0.56021866]
[1769209501428,0.00314581,2960.5,2959.6,0.56021866]
[1769209501619,0.30709797,2960.4,2959.6,0.56021866]
[1769209501818,0.00314581,2960.5,2959.6,0.56021866]
[1769209502021,0.30709799,2960.4,2959.6,0.56021866]
[1769209502220,0.00314581,2960.5,2959.2,0.45047606]
[1769209502428,1.20452214,2960.4,2959.2,0.45047606]
[1769209502621,0.30709901,2960.3,2959.2,0.45047606]
[1769209502823,0.00314581,2960.5,2959.2,0.45047606]
[1769209503029,1.20458041,2960.4,2959.2,0.45047606]
[1769209503215,1.20458041,2960.3,2959.2,0.00506603]
[1769209503423,1.20477401,2960.2,2959.2,0.00506603]
[1769209503621,0.6238683,2960.5,2959.2,0.00506603]
[1769209503827,1.20479784,2960.4,2959.2,0.00506603]
[1769209504021,1.20479784,2960.3,2959.2,0.00506603]
[1769209504223,1.20479784,2960.2,2959.2,0.00506603]
[1769209504428,1.20479784,2960.1,2959.2,0.00506603]